2CCN - Level 2 Cost Centre Name,,9CCN - Level 9 Cost Centre Name,9CCC - Level 9 Cost Centre Code,9AN - Level 9 Account Name,9AC - Level 9 Account Code,Date posted,Date of transaction,Merchant Name,Merchant City,Merchant State,Merchant Zip Code,Originating Account Name,Originating Account Number,MCC/SIC Code,MCC Description,Original Amount,Currency,Conversion Rate,Billed Amount,Debit Credit,Reference Number,Statement Cycle,Account Name
Gloucester City Council,23UE,Gloucester Life Museum,MU005,Catering Provisions,3103,03/07/2017,01/07/2017,ASDA SUPERSTORE,GLOUCESTER,GBR,GL1 1DS,REDACTED,556*********2362,5411,"GROCERY STORES, SUPERMARKETS",2.96,Pound Sterling (826),1.000000000,2.96,Debit,15377757183000650623827,02/08/2017,GLOUCESTER CC
Gloucester City Council,23UE,Museum of Gloucester,MU002,General Supplies/Materials,3025,07/07/2017,06/07/2017,POUNDLAND LTD 1167,GLOUCESTER,,GL1 1XH,REDACTED,556*********2362,5310,DISCOUNT STORES,3,Pound Sterling (826),1.000000000,3,Debit,05230657188560074210316,02/08/2017,GLOUCESTER CC
Gloucester City Council,23UE,Museum of Gloucester,MU002,General Supplies/Materials,3025,10/07/2017,07/07/2017,WILKO RETAIL LIMIT,GLOUCESTER 14,,GL1 1SL,REDACTED,556*********2362,5722,HOUSEHOLD APPLIANCE STORES,6,Pound Sterling (826),1.000000000,6,Debit,05230657189540071044743,02/08/2017,GLOUCESTER CC
Gloucester City Council,23UE,Museum of Gloucester,MU002,Catering Provisions,3103,10/07/2017,08/07/2017,ASDA SUPERSTORE,GLOUCESTER,GBR,GL1 1DS,REDACTED,556*********2362,5411,"GROCERY STORES, SUPERMARKETS",10.83,Pound Sterling (826),1.000000000,10.83,Debit,15377757190050689612698,02/08/2017,GLOUCESTER CC
Gloucester City Council,23UE,Museum of Gloucester,MU002,Catering Provisions,3103,14/07/2017,13/07/2017,POUNDLAND LTD 1167,GLOUCESTER,,GL1 1XH,REDACTED,556*********2362,5310,DISCOUNT STORES,2,Pound Sterling (826),1.000000000,2,Debit,05230657195230072980531,02/08/2017,GLOUCESTER CC
Gloucester City Council,23UE,Museum of Gloucester,MU002,General Supplies/Materials,3025,14/07/2017,13/07/2017,WILKO RETAIL LIMIT,GLOUCESTER 14,,GL1 1SL,REDACTED,556*********2362,5722,HOUSEHOLD APPLIANCE STORES,3,Pound Sterling (826),1.000000000,3,Debit,05230657195760070899135,02/08/2017,GLOUCESTER CC
Gloucester City Council,23UE,Museum of Gloucester,MU002,General Supplies/Materials,3025,17/07/2017,14/07/2017,BLOOMING ARTIFICIAL,08009777589,GBR,EC3V 0DR,REDACTED,556*********2362,5992,FLORISTS,124.18,Pound Sterling (826),1.000000000,124.18,Debit,75282477195130700200273,02/08/2017,GLOUCESTER CC
Gloucester City Council,23UE,Museum of Gloucester,MU002,Catering Provisions,3103,17/07/2017,15/07/2017,ASDA SUPERSTORE,GLOUCESTER,GBR,GL1 1DS,REDACTED,556*********2362,5411,"GROCERY STORES, SUPERMARKETS",5.96,Pound Sterling (826),1.000000000,5.96,Debit,15377757197000631411353,02/08/2017,GLOUCESTER CC
Gloucester City Council,23UE,Gloucester Life Museum,MU005,Catering Provisions,3103,18/07/2017,17/07/2017,WM MORRISON STORE,575 GLOUCESTE,,GL1 4BD,REDACTED,556*********2362,5411,"GROCERY STORES, SUPERMARKETS",4.31,Pound Sterling (826),1.000000000,4.31,Debit,05230657199930077997523,02/08/2017,GLOUCESTER CC
Gloucester City Council,23UE,Gloucester Life Museum,MU005,Catering Provisions,3103,24/07/2017,22/07/2017,ASDA SUPERSTORE,GLOUCESTER,GBR,GL1 1DS,REDACTED,556*********2362,5411,"GROCERY STORES, SUPERMARKETS",2.96,Pound Sterling (826),1.000000000,2.96,Debit,15377757204050663164702,02/08/2017,GLOUCESTER CC
Gloucester City Council,23UE,Museum of Gloucester,MU002,General Supplies/Materials,3025,31/07/2017,29/07/2017,THE ENTERTAINER,GLOUCESTER,GBR,GL1 1RX,REDACTED,556*********2362,5945,"HOBBY,TOY, AND GAME SHOPS",17.5,Pound Sterling (826),1.000000000,17.5,Debit,95425167211000567306005,02/08/2017,GLOUCESTER CC
Gloucester City Council,23UE,Museum of Gloucester,MU002,Catering Provisions,3103,31/07/2017,29/07/2017,ASDA SUPERSTORE,GLOUCESTER,GBR,GL1 1DS,REDACTED,556*********2362,5411,"GROCERY STORES, SUPERMARKETS",11.46,Pound Sterling (826),1.000000000,11.46,Debit,05377757211000596821391,02/08/2017,GLOUCESTER CC
Gloucester City Council,23UE,Managing Director & Directors,MT001,Conference Fees,0553,13/07/2017,12/07/2017,AMERISUITES,WOODBRIDGE,,,REDACTED,471*********7903,3514,AMERISUITES,130,Pound Sterling (826),1.000000000,130,Debit,74579157194004960637090,02/08/2017,GLOUCESTER CC
Gloucester City Council,23UE,Countryside Unit,EP003,Vehicle Repairs and Maintenance,2103,03/07/2017,28/06/2017,L & S ENGINEERS LTD,WALSALL,GB,WS8 7HB,REDACTED,556*********6734,5046,"COMMERCIAL EQUIPMENT, NOT ELSEWHERE CLASSIFIED",54.66,Pound Sterling (826),1.000000000,54.66,Debit,55504437179302363778527,02/08/2017,GLOUCESTER CC
Gloucester City Council,23UE,Countryside Unit,EP003,Vehicle Repairs and Maintenance,2103,06/07/2017,03/07/2017,Premier Farnell,Leeds,GBR,LS12 2NE,REDACTED,556*********6734,5065,ELECTRICAL PARTS AND EQUIPMENT,3.55,Pound Sterling (826),1.000000000,3.55,Debit,85130087186726675583808,02/08/2017,GLOUCESTER CC
Gloucester City Council,23UE,Countryside Unit,EP003,Vehicle Repairs and Maintenance,2103,07/07/2017,04/07/2017,Premier Farnell,Leeds,GBR,LS12 2NE,REDACTED,556*********6734,5065,ELECTRICAL PARTS AND EQUIPMENT,0.36,Pound Sterling (826),1.000000000,0.36,Debit,85130087187726704862057,02/08/2017,GLOUCESTER CC
Gloucester City Council,23UE,Countryside Unit,EP003,Vehicle Repairs and Maintenance,2103,07/07/2017,04/07/2017,Premier Farnell,Leeds,GBR,LS12 2NE,REDACTED,556*********6734,5065,ELECTRICAL PARTS AND EQUIPMENT,1.19,Pound Sterling (826),1.000000000,1.19,Debit,85130087187726704862073,02/08/2017,GLOUCESTER CC
Gloucester City Council,23UE,Countryside Unit,EP003,Vehicle Repairs and Maintenance,2103,07/07/2017,04/07/2017,Premier Farnell,Leeds,GBR,LS12 2NE,REDACTED,556*********6734,5065,ELECTRICAL PARTS AND EQUIPMENT,0.3,Pound Sterling (826),1.000000000,0.3,Debit,85130087187726704862446,02/08/2017,GLOUCESTER CC
Gloucester City Council,23UE,Countryside Unit,EP003,Vehicle Repairs and Maintenance,2103,10/07/2017,04/07/2017,Premier Farnell,Leeds,GBR,LS12 2NE,REDACTED,556*********6734,5065,ELECTRICAL PARTS AND EQUIPMENT,0.24,Pound Sterling (826),1.000000000,0.24,Debit,85130087188726747501760,02/08/2017,GLOUCESTER CC
Gloucester City Council,23UE,Countryside Unit,EP003,Vehicle Repairs and Maintenance,2103,17/07/2017,16/07/2017,PAYPAL *MALPASONLIN,35314369001,GBR,TW91EH,REDACTED,556*********6734,5533,"AUTOMOTIVE PARTS, ACCESSORIES STORES",47.5,Pound Sterling (826),1.000000000,47.5,Debit,85130087197728041690520,02/08/2017,GLOUCESTER CC
Gloucester City Council,23UE,Countryside Unit,EP003,Operative Clothing Allowances,0502,24/07/2017,21/07/2017,AMAZON.CO.UK,AMAZON.CO.UK,LUX,,REDACTED,556*********6734,5999,MISCELLANEOUS AND RETAIL STORES,10.1,Pound Sterling (826),1.000000000,10.1,Debit,85389247202728592882089,02/08/2017,GLOUCESTER CC
Gloucester City Council,23UE,Countryside Unit,EP003,Operative Clothing Allowances,0502,24/07/2017,23/07/2017,Amazon UK Marketplace,800-279-6620,LUX,L2338,REDACTED,556*********6734,5942,BOOK STORES,26.96,Pound Sterling (826),1.000000000,26.96,Debit,55204727204100425954367,02/08/2017,GLOUCESTER CC
Gloucester City Council,23UE,TIC Trading,TI003,Supplies For Resale,3020,26/07/2017,25/07/2017,ROYAL MAIL ONLINE SHOP,INTERNET,GBR,W1T 1HQ,REDACTED,556*********8997,9402,POSTAGE STAMPS,364,Pound Sterling (826),1.000000000,364,Debit,25425157207070073768588,02/08/2017,GLOUCESTER CC
Gloucester City Council,23UE,Homelessness,HS002,B&B Payments,1303,03/07/2017,30/06/2017,TRAVELODGE GB0000,THAME,,OX9 3AT,REDACTED,556*********4774,3615,TRAVELODGE,762,Pound Sterling (826),1.000000000,762,Debit,55504437181298138698162,02/08/2017,GLOUCESTER CC
Gloucester City Council,23UE,Homelessness,HS002,B&B Payments,1303,04/07/2017,03/07/2017,TRAVELODGE GB0000,THAME,,OX9 3AT,REDACTED,556*********4774,3615,TRAVELODGE,274,Pound Sterling (826),1.000000000,274,Debit,55504437184298161019184,02/08/2017,GLOUCESTER CC
Gloucester City Council,23UE,Homelessness,HS002,B&B Payments,1303,04/07/2017,03/07/2017,TRAVELODGE GB0000,THAME,,OX9 3AT,REDACTED,556*********4774,3615,TRAVELODGE,77,Pound Sterling (826),1.000000000,77,Debit,55504437184298160967599,02/08/2017,GLOUCESTER CC
Gloucester City Council,23UE,Homelessness,HS002,B&B Payments,1303,04/07/2017,03/07/2017,TRAVELODGE GB0000,THAME,,OX9 3AT,REDACTED,556*********4774,3615,TRAVELODGE,539,Pound Sterling (826),1.000000000,539,Debit,55504437184298160958168,02/08/2017,GLOUCESTER CC
Gloucester City Council,23UE,Homelessness,HS002,B&B Payments,1303,04/07/2017,03/07/2017,TRAVELODGE GB0000,THAME,,OX9 3AT,REDACTED,556*********4774,3615,TRAVELODGE,203,Pound Sterling (826),1.000000000,203,Debit,55504437184298160926074,02/08/2017,GLOUCESTER CC
Gloucester City Council,23UE,Homelessness,HS002,B&B Payments,1303,04/07/2017,03/07/2017,TRAVELODGE GB0000,THAME,,OX9 3AT,REDACTED,556*********4774,3615,TRAVELODGE,518,Pound Sterling (826),1.000000000,518,Debit,55504437184298160923493,02/08/2017,GLOUCESTER CC
Gloucester City Council,23UE,Homelessness,HS002,B&B Payments,1303,04/07/2017,03/07/2017,TRAVELODGE GB0000,THAME,,OX9 3AT,REDACTED,556*********4774,3615,TRAVELODGE,598,Pound Sterling (826),1.000000000,598,Debit,55504437184298160919251,02/08/2017,GLOUCESTER CC
Gloucester City Council,23UE,Homelessness,HS002,B&B Payments,1303,07/07/2017,06/07/2017,TRAVELODGE GB0000,THAME,,OX9 3AT,REDACTED,556*********4774,3615,TRAVELODGE,322,Pound Sterling (826),1.000000000,322,Debit,55504437187298183448350,02/08/2017,GLOUCESTER CC
Gloucester City Council,23UE,Homelessness,HS002,B&B Payments,1303,07/07/2017,06/07/2017,TRAVELODGE GB0000,THAME,,OX9 3AT,REDACTED,556*********4774,3615,TRAVELODGE,882,Pound Sterling (826),1.000000000,882,Debit,55504437187298183422413,02/08/2017,GLOUCESTER CC
Gloucester City Council,23UE,Homelessness,HS002,B&B Payments,1303,11/07/2017,10/07/2017,THE LITTLE THATCH,GLOUCESTER,,GL2 4PQ,REDACTED,556*********4774,7011,"LODGING, HOTELS, MOTELS, RESORTS",100,Pound Sterling (826),1.000000000,100,Debit,05230657191180064469858,02/08/2017,GLOUCESTER CC
Gloucester City Council,23UE,Homelessness,HS002,B&B Payments,1303,11/07/2017,10/07/2017,TRAVELODGE GB0000,THAME,,OX9 3AT,REDACTED,556*********4774,3615,TRAVELODGE,548,Pound Sterling (826),1.000000000,548,Debit,55504437191298113461063,02/08/2017,GLOUCESTER CC
Gloucester City Council,23UE,Homelessness,HS002,B&B Payments,1303,12/07/2017,11/07/2017,TRAVELODGE GB0000,THAME,,OX9 3AT,REDACTED,556*********4774,3615,TRAVELODGE,746,Pound Sterling (826),1.000000000,746,Debit,55504437192298119841069,02/08/2017,GLOUCESTER CC
Gloucester City Council,23UE,Homelessness,HS002,B&B Payments,1303,12/07/2017,11/07/2017,TRAVELODGE GB0000,THAME,,OX9 3AT,REDACTED,556*********4774,3615,TRAVELODGE,657,Pound Sterling (826),1.000000000,657,Debit,55504437192298119836515,02/08/2017,GLOUCESTER CC
Gloucester City Council,23UE,Homelessness,HS002,B&B Payments,1303,14/07/2017,13/07/2017,TRAVELODGE GB0000,THAME,,OX9 3AT,REDACTED,556*********4774,3615,TRAVELODGE,66,Pound Sterling (826),1.000000000,66,Debit,55504437194298136321903,02/08/2017,GLOUCESTER CC
Gloucester City Council,23UE,Homelessness,HS002,B&B Payments,1303,17/07/2017,14/07/2017,TRAVELODGE GB0000,THAME,,OX9 3AT,REDACTED,556*********4774,3615,TRAVELODGE,473,Pound Sterling (826),1.000000000,473,Debit,55504437195298144198524,02/08/2017,GLOUCESTER CC
Gloucester City Council,23UE,Homelessness,HS002,B&B Payments,1303,18/07/2017,17/07/2017,TRAVELODGE GB0000,THAME,,OX9 3AT,REDACTED,556*********4774,3615,TRAVELODGE,77,Pound Sterling (826),1.000000000,77,Debit,55504437198298164908718,02/08/2017,GLOUCESTER CC
Gloucester City Council,23UE,Homelessness,HS002,B&B Payments,1303,18/07/2017,17/07/2017,TRAVELODGE GB0000,THAME,,OX9 3AT,REDACTED,556*********4774,3615,TRAVELODGE,184,Pound Sterling (826),1.000000000,184,Debit,55504437198298164905532,02/08/2017,GLOUCESTER CC
Gloucester City Council,23UE,Homelessness,HS002,B&B Payments,1303,18/07/2017,17/07/2017,TRAVELODGE GB0000,THAME,,OX9 3AT,REDACTED,556*********4774,3615,TRAVELODGE,168,Pound Sterling (826),1.000000000,168,Debit,55504437198298164901739,02/08/2017,GLOUCESTER CC
Gloucester City Council,23UE,Homelessness,HS002,B&B Payments,1303,19/07/2017,18/07/2017,TRAVELODGE GB0000,THAME,,OX9 3AT,REDACTED,556*********4774,3615,TRAVELODGE,717,Pound Sterling (826),1.000000000,717,Debit,55504437199298172684771,02/08/2017,GLOUCESTER CC
Gloucester City Council,23UE,Homelessness,HS002,B&B Payments,1303,19/07/2017,18/07/2017,TRAVELODGE GB0000,THAME,,OX9 3AT,REDACTED,556*********4774,3615,TRAVELODGE,345,Pound Sterling (826),1.000000000,345,Debit,55504437199298172630584,02/08/2017,GLOUCESTER CC
Gloucester City Council,23UE,Homelessness,HS002,B&B Payments,1303,19/07/2017,18/07/2017,TRAVELODGE GB0000,THAME,,OX9 3AT,REDACTED,556*********4774,3615,TRAVELODGE,308,Pound Sterling (826),1.000000000,308,Debit,55504437199298172619090,02/08/2017,GLOUCESTER CC
Gloucester City Council,23UE,Homelessness,HS002,B&B Payments,1303,19/07/2017,18/07/2017,TRAVELODGE GB0000,THAME,,OX9 3AT,REDACTED,556*********4774,3615,TRAVELODGE,86,Pound Sterling (826),1.000000000,86,Debit,55504437199298172595530,02/08/2017,GLOUCESTER CC
Gloucester City Council,23UE,Homelessness,HS002,B&B Payments,1303,19/07/2017,18/07/2017,TRAVELODGE GB0000,THAME,,OX9 3AT,REDACTED,556*********4774,3615,TRAVELODGE,495,Pound Sterling (826),1.000000000,495,Debit,55504437199298172583304,02/08/2017,GLOUCESTER CC
Gloucester City Council,23UE,Homelessness,HS002,B&B Payments,1303,20/07/2017,19/07/2017,TRAVELODGE GB0000,THAME,,OX9 3AT,REDACTED,556*********4774,3615,TRAVELODGE,85,Pound Sterling (826),1.000000000,85,Debit,55504437200298179683955,02/08/2017,GLOUCESTER CC
Gloucester City Council,23UE,Homelessness,HS002,B&B Payments,1303,21/07/2017,20/07/2017,TRAVELODGE GB0000,THAME,,OX9 3AT,REDACTED,556*********4774,3615,TRAVELODGE,388,Pound Sterling (826),1.000000000,388,Debit,55504437201298187139411,02/08/2017,GLOUCESTER CC
Gloucester City Council,23UE,Homelessness,HS002,B&B Payments,1303,21/07/2017,20/07/2017,TRAVELODGE GB0000,THAME,,OX9 3AT,REDACTED,556*********4774,3615,TRAVELODGE,301,Pound Sterling (826),1.000000000,301,Debit,55504437201298187139015,02/08/2017,GLOUCESTER CC
Gloucester City Council,23UE,Homelessness,HS002,B&B Payments,1303,25/07/2017,24/07/2017,TRAVELODGE GB0000,THAME,,OX9 3AT,REDACTED,556*********4774,3615,TRAVELODGE,152,Pound Sterling (826),1.000000000,152,Debit,55504437205298115257018,02/08/2017,GLOUCESTER CC
Gloucester City Council,23UE,Homelessness,HS002,B&B Payments,1303,25/07/2017,24/07/2017,TRAVELODGE GB0000,THAME,,OX9 3AT,REDACTED,556*********4774,3615,TRAVELODGE,525,Pound Sterling (826),1.000000000,525,Debit,55504437205298115162630,02/08/2017,GLOUCESTER CC
Gloucester City Council,23UE,Homelessness,HS002,B&B Payments,1303,25/07/2017,24/07/2017,TRAVELODGE GB0000,THAME,,OX9 3AT,REDACTED,556*********4774,3615,TRAVELODGE,288,Pound Sterling (826),1.000000000,288,Debit,55504437205298115160097,02/08/2017,GLOUCESTER CC
Gloucester City Council,23UE,Homelessness,HS002,B&B Payments,1303,26/07/2017,25/07/2017,TRAVELODGE GB0000,THAME,,OX9 3AT,REDACTED,556*********4774,3615,TRAVELODGE,500,Pound Sterling (826),1.000000000,500,Debit,55504437206298122578603,02/08/2017,GLOUCESTER CC
Gloucester City Council,23UE,Homelessness,HS002,B&B Payments,1303,26/07/2017,25/07/2017,TRAVELODGE GB0000,THAME,,OX9 3AT,REDACTED,556*********4774,3615,TRAVELODGE,239,Pound Sterling (826),1.000000000,239,Debit,55504437206298122579098,02/08/2017,GLOUCESTER CC
Gloucester City Council,23UE,Homelessness,HS002,B&B Payments,1303,26/07/2017,25/07/2017,TRAVELODGE GB0000,THAME,,OX9 3AT,REDACTED,556*********4774,3615,TRAVELODGE,682,Pound Sterling (826),1.000000000,682,Debit,55504437206298122588537,02/08/2017,GLOUCESTER CC
Gloucester City Council,23UE,Homelessness,HS002,B&B Payments,1303,26/07/2017,25/07/2017,TRAVELODGE GB0000,THAME,,OX9 3AT,REDACTED,556*********4774,3615,TRAVELODGE,486,Pound Sterling (826),1.000000000,486,Debit,55504437206298122613434,02/08/2017,GLOUCESTER CC
Gloucester City Council,23UE,Homelessness,HS002,B&B Payments,1303,26/07/2017,25/07/2017,TRAVELODGE GB0000,THAME,,OX9 3AT,REDACTED,556*********4774,3615,TRAVELODGE,234,Pound Sterling (826),1.000000000,234,Debit,55504437206298122672109,02/08/2017,GLOUCESTER CC
Gloucester City Council,23UE,Homelessness,HS002,B&B Payments,1303,27/07/2017,26/07/2017,TRAVELODGE GB0000,THAME,,OX9 3AT,REDACTED,556*********4774,3615,TRAVELODGE,369,Pound Sterling (826),1.000000000,369,Debit,55504437207298130111438,02/08/2017,GLOUCESTER CC
Gloucester City Council,23UE,Homelessness,HS002,B&B Payments,1303,27/07/2017,26/07/2017,TRAVELODGE GB0000,THAME,,OX9 3AT,REDACTED,556*********4774,3615,TRAVELODGE,156,Pound Sterling (826),1.000000000,156,Debit,55504437207298130105992,02/08/2017,GLOUCESTER CC
Gloucester City Council,23UE,Homelessness,HS002,B&B Payments,1303,27/07/2017,26/07/2017,TRAVELODGE GB0000,THAME,,OX9 3AT,REDACTED,556*********4774,3615,TRAVELODGE,-148,Pound Sterling (826),1.000000000,-148,Credit,55504437207295346173822,02/08/2017,GLOUCESTER CC
Gloucester City Council,23UE,Homelessness,HS002,B&B Payments,1303,31/07/2017,28/07/2017,TRAVELODGE GB0000,THAME,,OX9 3AT,REDACTED,556*********4774,3615,TRAVELODGE,421,Pound Sterling (826),1.000000000,421,Debit,55504437209298146771736,02/08/2017,GLOUCESTER CC
Gloucester City Council,23UE,Docks Complex - Services,AM006,Hospitality & Refreshments,3104,10/07/2017,07/07/2017,TESCO STORES 6819,GLOUCESTER,GBR,GL1 1TP,REDACTED,556*********1053,5411,"GROCERY STORES, SUPERMARKETS",1.8,Pound Sterling (826),1.000000000,1.8,Debit,55377757189050381412594,02/08/2017,GLOUCESTER CC
Gloucester City Council,23UE,Docks Complex - Services,AM006,Hospitality & Refreshments,3104,14/07/2017,13/07/2017,SAINSBURYS 2221,GLOUCESTER,GBR,GL2 5SA,REDACTED,556*********1053,5411,"GROCERY STORES, SUPERMARKETS",24.4,Pound Sterling (826),1.000000000,24.4,Debit,25425157195090120005291,02/08/2017,GLOUCESTER CC
Gloucester City Council,23UE,Docks Complex - Services,AM006,Equipment and Furniture,3001,21/07/2017,20/07/2017,B & Q 1179,GLOUCESTER,,GL1 2SG,REDACTED,556*********1053,5211,LUMBER AND BUILDING MATERIALS STORES,88,Pound Sterling (826),1.000000000,88,Debit,05230657202530074713033,02/08/2017,GLOUCESTER CC
Gloucester City Council,23UE,Museum of Gloucester,MU002,Equipment and Furniture,3001,21/07/2017,20/07/2017,Amazon UK Marketplace,800-279-6620,LUX,L2338,REDACTED,556*********5592,5942,BOOK STORES,25.99,Pound Sterling (826),1.000000000,25.99,Debit,55204727201100479528052,02/08/2017,GLOUCESTER CC
Gloucester City Council,23UE,Guildhall Bar & Caf�,GH005,Catering Provisions,3103,04/07/2017,03/07/2017,ALDI,GLOUCESTER,,GL1 5BJ,REDACTED,556*********5661,5411,"GROCERY STORES, SUPERMARKETS",12.18,Pound Sterling (826),1.000000000,12.18,Debit,55541967185495000539428,02/08/2017,GLOUCESTER CC
Gloucester City Council,23UE,Guildhall Bar & Caf�,GH005,Catering Provisions,3103,04/07/2017,03/07/2017,ICELAND,GLOUCESTER,GBR,GL1 1SA,REDACTED,556*********5661,5411,"GROCERY STORES, SUPERMARKETS",22.69,Pound Sterling (826),1.000000000,22.69,Debit,35377757185010137310803,02/08/2017,GLOUCESTER CC
Gloucester City Council,23UE,Guildhall Bar & Caf�,GH005,Catering Provisions,3103,05/07/2017,04/07/2017,ICELAND,GLOUCESTER,GBR,GL1 1SA,REDACTED,556*********5661,5411,"GROCERY STORES, SUPERMARKETS",4,Pound Sterling (826),1.000000000,4,Debit,25377757186020091459074,02/08/2017,GLOUCESTER CC
Gloucester City Council,23UE,Guildhall Bar & Caf�,GH005,Catering Provisions,3103,11/07/2017,10/07/2017,MARKS&SPENCER PLC,GLOUCESTER,GBR,GL1 1PH,REDACTED,556*********5661,5411,"GROCERY STORES, SUPERMARKETS",7.32,Pound Sterling (826),1.000000000,7.32,Debit,35377757192060178423255,02/08/2017,GLOUCESTER CC
Gloucester City Council,23UE,Guildhall Bar & Caf�,GH005,Catering Provisions,3103,13/07/2017,12/07/2017,NEO'S ORIENTAL WHOLESA,GLOUCESTER,GBR,GL1 5AA,REDACTED,556*********5661,5411,"GROCERY STORES, SUPERMARKETS",6,Pound Sterling (826),1.000000000,6,Debit,25425157194080052193927,02/08/2017,GLOUCESTER CC
Gloucester City Council,23UE,Guildhall Bar & Caf�,GH005,Catering Provisions,3103,13/07/2017,12/07/2017,ASDA SUPERSTORE,GLOUCESTER,GBR,GL1 1DS,REDACTED,556*********5661,5411,"GROCERY STORES, SUPERMARKETS",19.73,Pound Sterling (826),1.000000000,19.73,Debit,45377757194080202798750,02/08/2017,GLOUCESTER CC
Gloucester City Council,23UE,Museum of Gloucester,MU002,Catering Provisions,3103,17/07/2017,14/07/2017,BOOKER LIMITED GLOUCES,GLOUCESTER,GBR,GL4 3RT,REDACTED,556*********5661,5811,CATERERS,156.81,Pound Sterling (826),1.000000000,156.81,Debit,55184227195891964519605,02/08/2017,GLOUCESTER CC
Gloucester City Council,23UE,Guildhall Bar & Caf�,GH005,Catering Provisions,3103,17/07/2017,14/07/2017,CO-OPERATIVE FOOD,GLOUCESTER,,GL1 1EA,REDACTED,556*********5661,5411,"GROCERY STORES, SUPERMARKETS",5.89,Pound Sterling (826),1.000000000,5.89,Debit,05230657196460073781328,02/08/2017,GLOUCESTER CC
Gloucester City Council,23UE,Guildhall Bar & Caf�,GH005,Catering Provisions,3103,18/07/2017,17/07/2017,ALDI,GLOUCESTER,,GL1 5BJ,REDACTED,556*********5661,5411,"GROCERY STORES, SUPERMARKETS",5.44,Pound Sterling (826),1.000000000,5.44,Debit,55541967199495000525793,02/08/2017,GLOUCESTER CC
Gloucester City Council,23UE,Guildhall Bar & Caf�,GH005,Catering Provisions,3103,18/07/2017,17/07/2017,ICELAND,GLOUCESTER,GBR,GL1 1SA,REDACTED,556*********5661,5411,"GROCERY STORES, SUPERMARKETS",15.94,Pound Sterling (826),1.000000000,15.94,Debit,25377757199010092419230,02/08/2017,GLOUCESTER CC
Gloucester City Council,23UE,Guildhall Bar & Caf�,GH005,Catering Provisions,3103,20/07/2017,19/07/2017,WM MORRISON STORE,575 GLOUCESTE,,GL1 4BD,REDACTED,556*********5661,5411,"GROCERY STORES, SUPERMARKETS",17.8,Pound Sterling (826),1.000000000,17.8,Debit,05230657201630074719245,02/08/2017,GLOUCESTER CC
Gloucester City Council,23UE,Guildhall Bar & Caf�,GH005,Catering Provisions,3103,25/07/2017,24/07/2017,ICELAND,GLOUCESTER,GBR,GL1 1SA,REDACTED,556*********5661,5411,"GROCERY STORES, SUPERMARKETS",11.92,Pound Sterling (826),1.000000000,11.92,Debit,35377757206060146903259,02/08/2017,GLOUCESTER CC
Gloucester City Council,23UE,Guildhall Bar & Caf�,GH005,Catering Provisions,3103,27/07/2017,26/07/2017,ALDI,GLOUCESTER,,GL1 5BJ,REDACTED,556*********5661,5411,"GROCERY STORES, SUPERMARKETS",80.21,Pound Sterling (826),1.000000000,80.21,Debit,55541967208495000433377,02/08/2017,GLOUCESTER CC
Gloucester City Council,23UE,Guildhall Bar & Caf�,GH005,Catering Provisions,3103,28/07/2017,27/07/2017,SAINSBURYS SACAT 2221,GLOUCESTER,GBR,GL2 5SA,REDACTED,556*********5661,5411,"GROCERY STORES, SUPERMARKETS",11.8,Pound Sterling (826),1.000000000,11.8,Debit,25425157209090106192554,02/08/2017,GLOUCESTER CC
Gloucester City Council,23UE,Guildhall Bar & Caf�,GH005,Catering Provisions,3103,31/07/2017,28/07/2017,ICELAND,GLOUCESTER,GBR,GL1 1SA,REDACTED,556*********5661,5411,"GROCERY STORES, SUPERMARKETS",5.04,Pound Sterling (826),1.000000000,5.04,Debit,35377757210000136071018,02/08/2017,GLOUCESTER CC
Gloucester City Council,23UE,Members Support,DS002,Members Travel Expenses,3609,13/07/2017,12/07/2017,TRAINLINE,Rail Tickets,GBR,1445,REDACTED,556*********3822,4112,PASSENGER RAILWAYS,-85.3,Pound Sterling (826),1.000000000,-85.3,Credit,85130087193727914679119,02/08/2017,GLOUCESTER CC
Gloucester City Council,23UE,Members Support,DS002,Members Travel Expenses,3609,13/07/2017,12/07/2017,TRAINLINE,Rail Tickets,GBR,1445,REDACTED,556*********3822,4112,PASSENGER RAILWAYS,-29.3,Pound Sterling (826),1.000000000,-29.3,Credit,85130087193727914679150,02/08/2017,GLOUCESTER CC
Gloucester City Council,23UE,Members Support,DS002,Members Travel Expenses,3609,21/07/2017,19/07/2017,Trainline,London,GBR,1445,REDACTED,556*********3822,4112,PASSENGER RAILWAYS,10.35,Pound Sterling (826),1.000000000,10.35,Debit,85130087201728172884300,02/08/2017,GLOUCESTER CC
Gloucester City Council,23UE,Members Support,DS002,Members Travel Expenses/Labour Group,3609/C204,26/07/2017,25/07/2017,TRAINLINE,Rail Tickets,GBR,1445,REDACTED,556*********3822,4112,PASSENGER RAILWAYS,-29.8,Pound Sterling (826),1.000000000,-29.8,Credit,85130087206729331926755,02/08/2017,GLOUCESTER CC
Gloucester City Council,23UE,Museum of Gloucester,MU002,Exhibition Costs,3021,03/07/2017,30/06/2017,Amazon UK Marketplace,800-279-6620,LUX,L2338,REDACTED,556*********8256,5942,BOOK STORES,58.68,Pound Sterling (826),1.000000000,58.68,Debit,55204727181100316320832,02/08/2017,GLOUCESTER CC
Gloucester City Council,23UE,Guildhall Events,GH002,Professional Advice/Consultants Fees,3952,03/07/2017,30/06/2017,MIPERMIT PARKING-DOM,INTERNET,GBR,SN15 5FD,REDACTED,556*********8256,7523,AUTOMOBILE PARKING LOTS AND GARAGES,20,Pound Sterling (826),1.000000000,20,Debit,25425157182000106309133,02/08/2017,GLOUCESTER CC
Gloucester City Council,23UE,Guildhall Events,GH002,Advertising & Publicity,3404,03/07/2017,30/06/2017,FACEBK *JWHEADAFX2,650-543-7818,IRL,UNKNOWN,REDACTED,556*********8256,7311,ADVERTISING SERVICES,11.99,Pound Sterling (826),1.000000000,11.99,Debit,55204727181100602508108,02/08/2017,GLOUCESTER CC
Gloucester City Council,23UE,Guildhall Events,GH002,Advertising & Publicity,3404,03/07/2017,01/07/2017,FACEBK UJXRSCJ6M2,www.fb.me/ads,IRL,2,REDACTED,556*********8256,7311,ADVERTISING SERVICES,55.44,Pound Sterling (826),1.000000000,55.44,Debit,15265677182196233281533,02/08/2017,GLOUCESTER CC
Gloucester City Council,23UE,Museum of Gloucester,MU002,Exhibition Costs,3021,03/07/2017,30/06/2017,WWW.EVERYTHINGDINO,01606 941068,,CW10 9FJ,REDACTED,556*********8256,5945,"HOBBY,TOY, AND GAME SHOPS",74.87,Pound Sterling (826),1.000000000,74.87,Debit,05230657182800079546504,02/08/2017,GLOUCESTER CC
Gloucester City Council,23UE,Museum of Gloucester,MU002,Equipment and Furniture,3001,05/07/2017,04/07/2017,PAYPAL *PERFECTTABL,35314369001,GBR,TW91EH,REDACTED,556*********8256,5099,"DURABLE GOODS,NOT ELSEWHERE CLASSIFIED",39.95,Pound Sterling (826),1.000000000,39.95,Debit,85130087185726655514063,02/08/2017,GLOUCESTER CC
Gloucester City Council,23UE,Museum of Gloucester,MU002,Equipment and Furniture,3001,06/07/2017,05/07/2017,PAYPAL *LUZHOUGUOJI,35314369001,GBR,TW91EH,REDACTED,556*********8256,5732,ELECTRONIC SALES,4.99,Pound Sterling (826),1.000000000,4.99,Debit,85130087186726673047475,02/08/2017,GLOUCESTER CC
Gloucester City Council,23UE,Gloucester Guildhall,GH001,General Supplies/Materials,3025,06/07/2017,05/07/2017,Amazon UK Marketplace,800-279-6620,LUX,L2338,REDACTED,556*********8256,5942,BOOK STORES,26.85,Pound Sterling (826),1.000000000,26.85,Debit,55204727186100874923766,02/08/2017,GLOUCESTER CC
Gloucester City Council,23UE,Gloucester Guildhall,GH001,General Supplies/Materials,3025,06/07/2017,05/07/2017,Amazon UK Marketplace,800-279-6620,LUX,L2338,REDACTED,556*********8256,5942,BOOK STORES,34.55,Pound Sterling (826),1.000000000,34.55,Debit,55204727186100875957383,02/08/2017,GLOUCESTER CC
Gloucester City Council,23UE,Museum of Gloucester,MU002,Exhibition Costs,3021,07/07/2017,06/07/2017,CUSTOMARK LTD,0870 7773645,,DY9 8RG,REDACTED,556*********8256,5943,"STATIONERY, OFFICE AND SCHOOL SUPPLY STO",123.4,Pound Sterling (826),1.000000000,123.4,Debit,05230657188130077117213,02/08/2017,GLOUCESTER CC
Gloucester City Council,23UE,Museum of Gloucester,MU002,Exhibition Costs,3021,11/07/2017,10/07/2017,Amazon UK Marketplace,800-279-6620,LUX,L2338,REDACTED,556*********8256,5942,BOOK STORES,5.04,Pound Sterling (826),1.000000000,5.04,Debit,55204727191100818114103,02/08/2017,GLOUCESTER CC
Gloucester City Council,23UE,Museum of Gloucester,MU002,Exhibition Costs,3021,11/07/2017,10/07/2017,Amazon UK Marketplace,800-279-6620,LUX,L2338,REDACTED,556*********8256,5942,BOOK STORES,2.05,Pound Sterling (826),1.000000000,2.05,Debit,55204727191100818510912,02/08/2017,GLOUCESTER CC
Gloucester City Council,23UE,Museum of Gloucester,MU002,Exhibition Costs,3021,11/07/2017,10/07/2017,Amazon UK Marketplace,800-279-6620,LUX,L2338,REDACTED,556*********8256,5942,BOOK STORES,7.99,Pound Sterling (826),1.000000000,7.99,Debit,55204727191100832717857,02/08/2017,GLOUCESTER CC
Gloucester City Council,23UE,Museum of Gloucester,MU002,Exhibition Costs,3021,11/07/2017,10/07/2017,Amazon UK Marketplace,800-279-6620,LUX,L2338,REDACTED,556*********8256,5942,BOOK STORES,29.15,Pound Sterling (826),1.000000000,29.15,Debit,55204727191100891404132,02/08/2017,GLOUCESTER CC
Gloucester City Council,23UE,Museum of Gloucester,MU002,Exhibition Costs,3021,11/07/2017,10/07/2017,Amazon UK Marketplace,800-279-6620,LUX,L2338,REDACTED,556*********8256,5942,BOOK STORES,1.24,Pound Sterling (826),1.000000000,1.24,Debit,55204727191100073805924,02/08/2017,GLOUCESTER CC
Gloucester City Council,23UE,Museum of Gloucester,MU002,Exhibition Costs,3021,12/07/2017,11/07/2017,Amazon UK Marketplace,800-279-6620,LUX,L2338,REDACTED,556*********8256,5942,BOOK STORES,1.55,Pound Sterling (826),1.000000000,1.55,Debit,55204727192100517364636,02/08/2017,GLOUCESTER CC
Gloucester City Council,23UE,Museum of Gloucester,MU002,General Supplies/Materials,3025,12/07/2017,11/07/2017,WWW.THEBARCODEWAREHOUS,INTERNET,GBR,NG24 2DX,REDACTED,556*********8256,5722,HOUSEHOLD APPLIANCE STORES,96.6,Pound Sterling (826),1.000000000,96.6,Debit,35425157193070146481347,02/08/2017,GLOUCESTER CC
Gloucester City Council,23UE,Museum of Gloucester,MU002,Exhibition Costs,3021,12/07/2017,12/07/2017,Amazon UK Marketplace,800-279-6620,LUX,L2338,REDACTED,556*********8256,5942,BOOK STORES,21.06,Pound Sterling (826),1.000000000,21.06,Debit,55204727193100861569441,02/08/2017,GLOUCESTER CC
Gloucester City Council,23UE,Museum of Gloucester,MU002,General Supplies/Materials,3025,13/07/2017,12/07/2017,WWW.FILPLASTIC.CO.UK,INTERNET,GBR,DN14 7PW,REDACTED,556*********8256,5085,INDUSTRIAL SUPPLIES NOT ELSEWHERE CLASSI,67.62,Pound Sterling (826),1.000000000,67.62,Debit,25425157194080090270968,02/08/2017,GLOUCESTER CC
Gloucester City Council,23UE,Museum of Gloucester,MU002,Exhibition Costs,3021,13/07/2017,11/07/2017,PAYPAL *TTSGROUPLTD,35314369001,GBR,DE221FD,REDACTED,556*********8256,8299,SCHOOLS AND EDUCATIONAL SERVICES NOT ELSEWHERE CLASSIFIED,41.93,Pound Sterling (826),1.000000000,41.93,Debit,85130087193727890526995,02/08/2017,GLOUCESTER CC
Gloucester City Council,23UE,Museum of Gloucester,MU002,Exhibition Costs,3021,13/07/2017,11/07/2017,PAYPAL *TTSGROUPLTD,35314369001,GBR,DE221FD,REDACTED,556*********8256,8299,SCHOOLS AND EDUCATIONAL SERVICES NOT ELSEWHERE CLASSIFIED,35.98,Pound Sterling (826),1.000000000,35.98,Debit,85130087193727891313914,02/08/2017,GLOUCESTER CC
Gloucester City Council,23UE,Museum of Gloucester,MU002,Exhibition Costs,3021,13/07/2017,12/07/2017,B & Q 1179,GLOUCESTER,,GL1 2SG,REDACTED,556*********8256,5211,LUMBER AND BUILDING MATERIALS STORES,62.36,Pound Sterling (826),1.000000000,62.36,Debit,05230657194450078499770,02/08/2017,GLOUCESTER CC
Gloucester City Council,23UE,Museum of Gloucester,MU002,Exhibition Costs,3021,13/07/2017,12/07/2017,ARGOS LTD,GLOUCESTER,,GL1 2SR,REDACTED,556*********8256,5310,DISCOUNT STORES,9,Pound Sterling (826),1.000000000,9,Debit,05230657194370071914882,02/08/2017,GLOUCESTER CC
Gloucester City Council,23UE,Museum of Gloucester,MU002,General Supplies/Materials,3025,13/07/2017,12/07/2017,MORPLAN LTD,HARLOW,,CM20 2TS,REDACTED,556*********8256,5943,"STATIONERY, OFFICE AND SCHOOL SUPPLY STO",59.82,Pound Sterling (826),1.000000000,59.82,Debit,05230657194190073605134,02/08/2017,GLOUCESTER CC
Gloucester City Council,23UE,Museum of Gloucester,MU002,Exhibition Costs,3021,13/07/2017,11/07/2017,AMAZON.CO.UK,AMAZON.CO.UK,LUX,,REDACTED,556*********8256,5999,MISCELLANEOUS AND RETAIL STORES,7.99,Pound Sterling (826),1.000000000,7.99,Debit,85389247193727515450132,02/08/2017,GLOUCESTER CC
Gloucester City Council,23UE,Museum of Gloucester,MU002,Exhibition Costs,3021,14/07/2017,13/07/2017,Amazon UK Marketplace,800-279-6620,LUX,L2338,REDACTED,556*********8256,5942,BOOK STORES,8.75,Pound Sterling (826),1.000000000,8.75,Debit,55204727194100918086018,02/08/2017,GLOUCESTER CC
Gloucester City Council,23UE,Museum of Gloucester,MU002,General Supplies/Materials,3025,14/07/2017,13/07/2017,Amazon UK Marketplace,800-279-6620,LUX,L2338,REDACTED,556*********8256,5942,BOOK STORES,33.98,Pound Sterling (826),1.000000000,33.98,Debit,55204727194100931988893,02/08/2017,GLOUCESTER CC
Gloucester City Council,23UE,Museum of Gloucester,MU002,Exhibition Costs,3021,14/07/2017,13/07/2017,Amazon UK Marketplace,800-279-6620,LUX,L2338,REDACTED,556*********8256,5942,BOOK STORES,10.95,Pound Sterling (826),1.000000000,10.95,Debit,55204727194100992838334,02/08/2017,GLOUCESTER CC
Gloucester City Council,23UE,Museum of Gloucester,MU002,Exhibition Costs,3021,14/07/2017,13/07/2017,Amazon UK Marketplace,800-279-6620,LUX,L2338,REDACTED,556*********8256,5942,BOOK STORES,11.98,Pound Sterling (826),1.000000000,11.98,Debit,55204727194100993928795,02/08/2017,GLOUCESTER CC
Gloucester City Council,23UE,Museum of Gloucester,MU002,Exhibition Costs,3021,14/07/2017,13/07/2017,J & E NEVITT,WORCESTER,GBR,WR1 3LR,REDACTED,556*********8256,5722,HOUSEHOLD APPLIANCE STORES,5.3,Pound Sterling (826),1.000000000,5.3,Debit,25425157195090025665298,02/08/2017,GLOUCESTER CC
Gloucester City Council,23UE,Guildhall Events,GU002,General Supplies/Materials,3025,14/07/2017,13/07/2017,MIPERMIT PARKING-DOM,INTERNET,GBR,SN15 5FD,REDACTED,556*********8256,7523,AUTOMOBILE PARKING LOTS AND GARAGES,10,Pound Sterling (826),1.000000000,10,Debit,25425157195090116578236,02/08/2017,GLOUCESTER CC
Gloucester City Council,23UE,Museum of Gloucester,MU002,Exhibition Costs,3021,14/07/2017,13/07/2017,PAYPAL *ARGOSDIRECT,35314369001,GBR,MK92NW,REDACTED,556*********8256,5331,VARIETY STORES,15,Pound Sterling (826),1.000000000,15,Debit,85130087194727932680692,02/08/2017,GLOUCESTER CC
Gloucester City Council,23UE,Museum of Gloucester,MU002,General Supplies/Materials,3025,14/07/2017,13/07/2017,PAYPAL *ARGOSLIMITE,35314369001,GBR,MK92NW,REDACTED,556*********8256,5331,VARIETY STORES,218.99,Pound Sterling (826),1.000000000,218.99,Debit,85130087194727950066071,02/08/2017,GLOUCESTER CC
Gloucester City Council,23UE,Gloucester Guildhall,GH001,General Supplies/Materials,3025,14/07/2017,13/07/2017,WILKO RETAIL LIMIT,GLOUCESTER 14,,GL1 1SL,REDACTED,556*********8256,5722,HOUSEHOLD APPLIANCE STORES,2.99,Pound Sterling (826),1.000000000,2.99,Debit,05230657195710070898843,02/08/2017,GLOUCESTER CC
Gloucester City Council,23UE,Museum of Gloucester,MU002,Exhibition Costs,3021,14/07/2017,13/07/2017,HMV RETAIL LTD,GLOUCESTER,GBR,GL1 1RW,REDACTED,556*********8256,5735,RECORD SHOPS,6.99,Pound Sterling (826),1.000000000,6.99,Debit,35377757195090216472987,02/08/2017,GLOUCESTER CC
Gloucester City Council,23UE,Guildhall Events,GH002,Professional Advice/Consultants Fees,3952,14/07/2017,13/07/2017,MERCURE GLOUCESTER,HOTEL 01452 6,,GL4 8ED,REDACTED,556*********8256,7011,"LODGING, HOTELS, MOTELS, RESORTS",117,Pound Sterling (826),1.000000000,117,Debit,05230657195810064210888,02/08/2017,GLOUCESTER CC
Gloucester City Council,23UE,Museum of Gloucester,MU002,Exhibition Costs,3021,17/07/2017,14/07/2017,Amazon UK Marketplace,800-279-6620,LUX,L2338,REDACTED,556*********8256,5942,BOOK STORES,24.96,Pound Sterling (826),1.000000000,24.96,Debit,55204727195100684356511,02/08/2017,GLOUCESTER CC
Gloucester City Council,23UE,Museum of Gloucester,MU002,Exhibition Costs,3021,17/07/2017,14/07/2017,DUNELM (SOFT FURNISHIN,GLOUCESTER,GBR,GL1 2TF,REDACTED,556*********8256,5714,"WINDOW COVERING, UPHOLSTERY AND DRAPERY STORES",6,Pound Sterling (826),1.000000000,6,Debit,55377757196000311584476,02/08/2017,GLOUCESTER CC
Gloucester City Council,23UE,Museum of Gloucester,MU002,Exhibition Costs,3021,17/07/2017,14/07/2017,WH SMITH,GLOUCESTER,GBR,GL1 1NZ,REDACTED,556*********8256,5994,NEWS DEALERS AND NEWSSTANDS,4.58,Pound Sterling (826),1.000000000,4.58,Debit,25377757196000141027681,02/08/2017,GLOUCESTER CC
Gloucester City Council,23UE,Museum of Gloucester,MU002,Exhibition Costs,3021,17/07/2017,14/07/2017,BIZ STATIONERY SUPERST,GLOUCESTER,GBR,GL1 2RU,REDACTED,556*********8256,5111,"STATIONERY,OFFICE SUPPLIES,PRINTING AND WRITING PAPER",3.5,Pound Sterling (826),1.000000000,3.5,Debit,55184227195891967353176,02/08/2017,GLOUCESTER CC
Gloucester City Council,23UE,Museum of Gloucester,MU002,General Supplies/Materials,3025,17/07/2017,14/07/2017,ARGOS LTD,GLOUCESTER,,GL1 2SR,REDACTED,556*********8256,5310,DISCOUNT STORES,87.96,Pound Sterling (826),1.000000000,87.96,Debit,05230657196790076054509,02/08/2017,GLOUCESTER CC
Gloucester City Council,23UE,Museum of Gloucester,MU002,Exhibition Costs,3021,17/07/2017,14/07/2017,WILKO RETAIL LIMIT,GLOUCESTER 14,,GL1 1SL,REDACTED,556*********8256,5722,HOUSEHOLD APPLIANCE STORES,11.55,Pound Sterling (826),1.000000000,11.55,Debit,05230657196060071055665,02/08/2017,GLOUCESTER CC
Gloucester City Council,23UE,Guildhall Events,GH002,General Supplies/Materials,3025,17/07/2017,15/07/2017,MIPERMIT PARKING-DOM,INTERNET,GBR,SN15 5FD,REDACTED,556*********8256,7523,AUTOMOBILE PARKING LOTS AND GARAGES,10,Pound Sterling (826),1.000000000,10,Debit,95425157197000523969341,02/08/2017,GLOUCESTER CC
Gloucester City Council,23UE,Gloucester Guildhall,GH001,External Training Course Fees,0550,19/07/2017,18/07/2017,STUDY365,442037512204,GBR,E13FY,REDACTED,556*********8256,8249,VOCATIONAL AND TRADE SCHOOLS,54,Pound Sterling (826),1.000000000,54,Debit,85130087199728101025276,02/08/2017,GLOUCESTER CC
Gloucester City Council,23UE,Guildhall Events,GH002,Advertising & Publicity,3404,19/07/2017,18/07/2017,WWW.INSTANTPRINT.C,01709 382202,,S63 5DR,REDACTED,556*********8256,7338,QUICK-COPY AND REPRODUCTION SERVICES,22.99,Pound Sterling (826),1.000000000,22.99,Debit,05230657200190077782014,02/08/2017,GLOUCESTER CC
Gloucester City Council,23UE,Gloucester Guildhall,GH001,Road Fund License,2101,20/07/2017,19/07/2017,DVLA VEHICLE TAX,0300 1234321,,SA6 7JL,REDACTED,556*********8256,9399,GOVERNMENT SERVICES NOT ELSEWHERE CLASSIFIED,152.5,Pound Sterling (826),1.000000000,152.5,Debit,05230657201130074472341,02/08/2017,GLOUCESTER CC
Gloucester City Council,23UE,Gloucester Guildhall,GH001,Professional Advice/Consultants Fees,3952,20/07/2017,19/07/2017,CO-OPERATIVE FOOD,GLOUCESTER,,GL1 1EA,REDACTED,556*********8256,5411,"GROCERY STORES, SUPERMARKETS",147,Pound Sterling (826),1.000000000,147,Debit,05230657201800071627630,02/08/2017,GLOUCESTER CC
Gloucester City Council,23UE,Guildhall Cinema,GH003,Equipment and Furniture,3001,21/07/2017,20/07/2017,Amazon UK Marketplace,800-279-6620,LUX,L2338,REDACTED,556*********8256,5942,BOOK STORES,9.99,Pound Sterling (826),1.000000000,9.99,Debit,55204727201100420814098,02/08/2017,GLOUCESTER CC
Gloucester City Council,23UE,Museum of Gloucester,MU002,Exhibition Costs,3021,21/07/2017,20/07/2017,Amazon UK Marketplace,800-279-6620,LUX,L2338,REDACTED,556*********8256,5942,BOOK STORES,12.47,Pound Sterling (826),1.000000000,12.47,Debit,55204727201100482133718,02/08/2017,GLOUCESTER CC
Gloucester City Council,23UE,Guildhall Events,GH002,General Supplies/Materials,3025,21/07/2017,20/07/2017,VERIFONE TAXI/PRIVATE,03336661000,GBR,UB8 2AD,REDACTED,556*********8256,4121,TAXICABS/LIMOUSINES,10,Pound Sterling (826),1.000000000,10,Debit,35425157202040159248254,02/08/2017,GLOUCESTER CC
Gloucester City Council,23UE,Guildhall Events,GH002,General Supplies/Materials,3025,21/07/2017,20/07/2017,VERIFONE TAXI/PRIVATE,03336661000,GBR,UB8 2AD,REDACTED,556*********8256,4121,TAXICABS/LIMOUSINES,10,Pound Sterling (826),1.000000000,10,Debit,35425157202040159248338,02/08/2017,GLOUCESTER CC
Gloucester City Council,23UE,Guildhall Bar & Caf�,GH005,Catering Provisions,3103,21/07/2017,20/07/2017,CO-OPERATIVE FOOD,GLOUCESTER,,GL1 1EA,REDACTED,556*********8256,5411,"GROCERY STORES, SUPERMARKETS",5.85,Pound Sterling (826),1.000000000,5.85,Debit,05230657202620073034232,02/08/2017,GLOUCESTER CC
Gloucester City Council,23UE,Museum of Gloucester,MU002,General Supplies/Materials,3025,21/07/2017,20/07/2017,WWW.THEBARCODEWAREHOUS,INTERNET,GBR,NG24 2DX,REDACTED,556*********8256,5722,HOUSEHOLD APPLIANCE STORES,-78.31,Pound Sterling (826),1.000000000,-78.31,Credit,35425157202040166873060,02/08/2017,GLOUCESTER CC
Gloucester City Council,23UE,Blackfriars,GH010,Building Repairs and Maintenance,1001,24/07/2017,21/07/2017,WESTLANDS ARCHITECTURA,GLOUCESTER,GBR,GL2 5EL,REDACTED,556*********8256,5039,CONSTRUCTION MATERIALS,89.17,Pound Sterling (826),1.000000000,89.17,Debit,25425157203050034377780,02/08/2017,GLOUCESTER CC
Gloucester City Council,23UE,Guildhall Events,GH002,General Supplies/Materials,3025,24/07/2017,21/07/2017,MIPERMIT PARKING-DOM,INTERNET,GBR,SN15 5FD,REDACTED,556*********8256,7523,AUTOMOBILE PARKING LOTS AND GARAGES,10,Pound Sterling (826),1.000000000,10,Debit,25425157203050100000431,02/08/2017,GLOUCESTER CC
Gloucester City Council,23UE,Guildhall Events,GH002,General Supplies/Materials,3025,26/07/2017,25/07/2017,MIPERMIT PARKING-DOM,INTERNET,GBR,SN15 5FD,REDACTED,556*********8256,7523,AUTOMOBILE PARKING LOTS AND GARAGES,10,Pound Sterling (826),1.000000000,10,Debit,25425157207070112748070,02/08/2017,GLOUCESTER CC
Gloucester City Council,23UE,Guildhall Events,GH002,General Supplies/Materials,3025,28/07/2017,27/07/2017,MIPERMIT PARKING-DOM,INTERNET,GBR,SN15 5FD,REDACTED,556*********8256,7523,AUTOMOBILE PARKING LOTS AND GARAGES,10,Pound Sterling (826),1.000000000,10,Debit,25425157209090100885724,02/08/2017,GLOUCESTER CC
Gloucester City Council,23UE,Guildhall Events,GH002,Advertising & Publicity,3404,28/07/2017,27/07/2017,WWW.INSTANTPRINT.C,01709 382202,,S63 5DR,REDACTED,556*********8256,7338,QUICK-COPY AND REPRODUCTION SERVICES,26.99,Pound Sterling (826),1.000000000,26.99,Debit,05230657209400079036736,02/08/2017,GLOUCESTER CC
Gloucester City Council,23UE,Guildhall Events,GH002,Advertising & Publicity,3404,01/08/2017,31/07/2017,FACEBK DBGXNDE5M2,www.fb.me/ads,IRL,2,REDACTED,556*********8256,7311,ADVERTISING SERVICES,104.24,Pound Sterling (826),1.000000000,104.24,Debit,15265677212668669331242,02/08/2017,GLOUCESTER CC
Gloucester City Council,23UE,Guildhall Events,GH002 ,Professional Advice/Consultants Fees,3952,01/08/2017,31/07/2017,ROOMSBOOKED LTD,CHELTENHAM,GBR,GL50 4BA,REDACTED,556*********8256,7011,"LODGING, HOTELS, MOTELS, RESORTS",181.5,Pound Sterling (826),1.000000000,181.5,Debit,45425157213010255731079,02/08/2017,GLOUCESTER CC
Gloucester City Council,23UE,Guildhall Events,GH002,Advertising & Publicity,3404,01/08/2017,01/08/2017,FACEBK *KSHKKDAFX2,650-543-7818,IRL,UNKNOWN,REDACTED,556*********8256,7311,ADVERTISING SERVICES,4.38,Pound Sterling (826),1.000000000,4.38,Debit,55204727213100710946747,02/08/2017,GLOUCESTER CC
Gloucester City Council,23UE,Guildhall Bar & Caf�,GH005,Catering Provisions,3103,02/08/2017,01/08/2017,ASDA SUPERSTORE,GLOUCESTER,GBR,GL1 1DS,REDACTED,556*********8256,5411,"GROCERY STORES, SUPERMARKETS",69.14,Pound Sterling (826),1.000000000,69.14,Debit,45377757214020236282427,02/08/2017,GLOUCESTER CC
Gloucester City Council,23UE,Guildhall Bar & Caf�,GH005,Catering Provisions,3103,02/08/2017,01/08/2017,BOOKER LIMITED GLOUCES,GLOUCESTER,GBR,GL4 3RT,REDACTED,556*********8256,5811,CATERERS,89.98,Pound Sterling (826),1.000000000,89.98,Debit,55184227213892144010356,02/08/2017,GLOUCESTER CC
Gloucester City Council,23UE,Financial Services,FS004,Public Transport - Staff,2402,06/07/2017,05/07/2017,GWR WEBSALES,SWINDON,,SN1 1HL,REDACTED,556*********3063,4112,PASSENGER RAILWAYS,9.4,Pound Sterling (826),1.000000000,9.4,Debit,55504437186160310042947,02/08/2017,GLOUCESTER CC
Gloucester City Council,23UE,Members Support,DS002,Members Travel Expenses/Labour Group,3609/C204,10/07/2017,07/07/2017,GWR WEBSALES,SWINDON,,SN1 1HL,REDACTED,556*********3063,4112,PASSENGER RAILWAYS,123.6,Pound Sterling (826),1.000000000,123.6,Debit,55504437188160322475497,02/08/2017,GLOUCESTER CC
Gloucester City Council,23UE,Business Transformation,BI006,ICT New Hardware,3523,10/07/2017,08/07/2017,Amazon EU,AMAZON.CO.UK,LUX,L2338,REDACTED,556*********3063,5969,ALL OTHER DIRECT MARKETERS,32.74,Pound Sterling (826),1.000000000,32.74,Debit,55204727189100652299915,02/08/2017,GLOUCESTER CC
Gloucester City Council,23UE,Civica Admin Charges,BI002,Professional Advice/Consultants Fees,3952,17/07/2017,14/07/2017,HMCOURTS-SERVICE.G,01452420100,,GL1 2ZG,REDACTED,556*********3063,9222,FINES,753,Pound Sterling (826),1.000000000,753,Debit,05230657196610075831022,02/08/2017,GLOUCESTER CC
Gloucester City Council,23UE,Elections,DS004,Professional Advice/Consultants Fees,3952,20/07/2017,19/07/2017,WWW.ICO.GOV.UK,03031231113 W,,SK9 5AF,REDACTED,556*********3063,9399,GOVERNMENT SERVICES NOT ELSEWHERE CLASSIFIED,500,Pound Sterling (826),1.000000000,500,Debit,05230657201930070168243,02/08/2017,GLOUCESTER CC
Gloucester City Council,23UE,Vehicles,CT002,Hire of Vehicles/Plant,2301,21/07/2017,20/07/2017,ENTERPRISE,01452 419222,,GL2 5HY,REDACTED,556*********3063,3405,ENTERPRISE RENT-A-CAR,425.04,Pound Sterling (826),1.000000000,425.04,Debit,05230657201070076108388,02/08/2017,GLOUCESTER CC
Gloucester City Council,23UE,HMO Licences,PS004,External Training Course Fees,0550,27/07/2017,26/07/2017,R H ENVIRONMENTAL LTD,441239711793,GBR,EC3V 0DR,REDACTED,556*********3063,5734,COMPUTER SOFTWARE STORES,950.4,Pound Sterling (826),1.000000000,950.4,Debit,75282477207130700241802,02/08/2017,GLOUCESTER CC
Gloucester City Council,23UE,Vehicles,CT002,Hire of Vehicles/Plant,2301,28/07/2017,27/07/2017,ENTERPRISE,01452 419222,,GL2 5HY,REDACTED,556*********3063,3405,ENTERPRISE RENT-A-CAR,149.29,Pound Sterling (826),1.000000000,149.29,Debit,05230657209450070377647,02/08/2017,GLOUCESTER CC
Gloucester City Council,23UE,Vehicles,CT002,Hire of Vehicles/Plant,2301,28/07/2017,27/07/2017,ENTERPRISE,01452 419222,,GL2 5HY,REDACTED,556*********3063,3405,ENTERPRISE RENT-A-CAR,380.02,Pound Sterling (826),1.000000000,380.02,Debit,05230657209460070377653,02/08/2017,GLOUCESTER CC
Gloucester City Council,23UE,Homelessness,HS002,B&B Payments,1303,01/08/2017,31/07/2017,TRAVELODGE GB0000,THAME,,OX9 3AT,REDACTED,556*********3063,3615,TRAVELODGE,534,Pound Sterling (826),1.000000000,534,Debit,55504437212298167157372,02/08/2017,GLOUCESTER CC
Gloucester City Council,23UE,Homelessness,HS002,B&B Payments,1303,01/08/2017,31/07/2017,TRAVELODGE GB0000,THAME,,OX9 3AT,REDACTED,556*********3063,3615,TRAVELODGE,65,Pound Sterling (826),1.000000000,65,Debit,55504437212298167152944,02/08/2017,GLOUCESTER CC
Gloucester City Council,23UE,Homelessness,HS002,B&B Payments,1303,01/08/2017,31/07/2017,TRAVELODGE GB0000,THAME,,OX9 3AT,REDACTED,556*********3063,3615,TRAVELODGE,451,Pound Sterling (826),1.000000000,451,Debit,55504437212298167090052,02/08/2017,GLOUCESTER CC
Gloucester City Council,23UE,Homelessness,HS002,B&B Payments,1303,01/08/2017,31/07/2017,TRAVELODGE GB0000,THAME,,OX9 3AT,REDACTED,556*********3063,3615,TRAVELODGE,128,Pound Sterling (826),1.000000000,128,Debit,55504437212298167061046,02/08/2017,GLOUCESTER CC
Gloucester City Council,23UE,Homelessness,HS002,B&B Payments,1303,02/08/2017,01/08/2017,TRAVELODGE GB0000,THAME,,OX9 3AT,REDACTED,556*********3063,3615,TRAVELODGE,678,Pound Sterling (826),1.000000000,678,Debit,55504437213298174167355,02/08/2017,GLOUCESTER CC
Gloucester City Council,23UE,Homelessness,HS002,B&B Payments,1303,02/08/2017,01/08/2017,TRAVELODGE GB0000,THAME,,OX9 3AT,REDACTED,556*********3063,3615,TRAVELODGE,663,Pound Sterling (826),1.000000000,663,Debit,55504437213298174135543,02/08/2017,GLOUCESTER CC
Gloucester City Council,23UE,Homelessness,HS002,B&B Payments,1303,02/08/2017,01/08/2017,TRAVELODGE GB0000,THAME,,OX9 3AT,REDACTED,556*********3063,3615,TRAVELODGE,535,Pound Sterling (826),1.000000000,535,Debit,55504437213298174132789,02/08/2017,GLOUCESTER CC
